[Event "*** SCC Grand Prix: Titled Tuesday Blitz"]
[Site "Chess.com"]
[Date "2020.08.25"]
[Round "3"]
[White "krasavetc"]
[Black "sergivila"]
[Result "0-1"]
[WhiteElo "2302"]
[BlackElo "2439"]
[TimeControl "180+1"]
[EndTime "10:29:23 PDT"]
[Termination "sergivila won on time"]

1. c4 {[%clk 0:03:00.5]} 1... e6 {[%clk 0:02:59.5]} 2. Nc3 {[%clk 0:02:59.3]}
2... d5 {[%clk 0:02:59.6]} 3. d4 {[%clk 0:02:59.4]} 3... Bb4 {[%clk 0:03:00.1]}
4. Bd2 {[%clk 0:02:59.1]} 4... Nf6 {[%clk 0:02:59.2]} 5. f3 {[%clk 0:02:54.6]}
5... O-O {[%clk 0:02:56]} 6. a3 {[%clk 0:02:52.8]} 6... Bxc3 {[%clk 0:02:55]} 7.
Bxc3 {[%clk 0:02:53.7]} 7... b6 {[%clk 0:02:48.3]} 8. cxd5 {[%clk 0:02:37.3]}
8... exd5 {[%clk 0:02:46.9]} 9. Qc2 {[%clk 0:02:32.5]} 9... Re8 {[%clk
0:02:45.1]} 10. g4 {[%clk 0:02:26.9]} 10... Ba6 {[%clk 0:02:36.2]} 11. O-O-O
{[%clk 0:02:23.1]} 11... Nbd7 {[%clk 0:02:05.7]} 12. g5 {[%clk 0:01:40.1]} 12...
Nh5 {[%clk 0:02:05.1]} 13. h4 {[%clk 0:01:40.5]} 13... c5 {[%clk 0:01:55.5]} 14.
Qf5 {[%clk 0:01:34.7]} 14... cxd4 {[%clk 0:01:45.1]} 15. Bxd4 {[%clk 0:01:31.5]}
15... Ng3 {[%clk 0:01:39.3]} 16. Qf4 {[%clk 0:01:14.4]} 16... Nxh1 {[%clk
0:01:36.3]} 17. Bg2 {[%clk 0:01:14.4]} 17... Rc8+ {[%clk 0:01:29.9]} 18. Kb1
{[%clk 0:01:12.8]} 18... Bxe2 {[%clk 0:01:29]} 19. Nxe2 {[%clk 0:01:07.7]} 19...
Rxe2 {[%clk 0:01:28]} 20. Bxh1 {[%clk 0:01:08.6]} 20... Nc5 {[%clk 0:01:22.8]}
21. h5 {[%clk 0:00:58.2]} 21... Qe8 {[%clk 0:01:15.4]} 22. h6 {[%clk 0:00:16.2]}
22... Ne6 {[%clk 0:01:07.6]} 23. Qf5 {[%clk 0:00:03.9]} 23... Nxd4 {[%clk
0:01:05.6]} 24. Rxd4 {[%clk 0:00:04]} 24... Rcc2 {[%clk 0:00:59.4]} 25. Qxc2
{[%clk 0:00:02.9]} 25... Rxc2 {[%clk 0:00:58.1]} 26. Kxc2 {[%clk 0:00:03.8]}
26... Qe2+ {[%clk 0:00:53.3]} 27. Rd2 {[%clk 0:00:03.8]} 27... Qc4+ {[%clk
0:00:53]} 0-1

[Event "*** SCC Grand Prix: Titled Tuesday Blitz"]
[Site "Chess.com"]
[Date "2020.08.25"]
[Round "3"]
[White "Caterpiller35"]
[Black "lacafi"]
[Result "1-0"]
[WhiteElo "2343"]
[BlackElo "2136"]
[TimeControl "180+1"]
[EndTime "10:29:23 PDT"]
[Termination "Caterpiller35 won by resignation"]

1. e4 {[%clk 0:02:59.4]} 1... c6 {[%clk 0:02:59.2]} 2. Nc3 {[%clk 0:02:58.3]}
2... d5 {[%clk 0:03:00.1]} 3. Nf3 {[%clk 0:02:58.5]} 3... dxe4 {[%clk
0:03:00.3]} 4. Nxe4 {[%clk 0:02:58.7]} 4... Nf6 {[%clk 0:03:01.2]} 5. Qe2 {[%clk
0:02:56.9]} 5... e6 {[%clk 0:02:58.9]} 6. b3 {[%clk 0:02:53.8]} 6... Nxe4 {[%clk
0:02:57.3]} 7. Qxe4 {[%clk 0:02:53.7]} 7... Nd7 {[%clk 0:02:57.6]} 8. Bb2 {[%clk
0:02:53.7]} 8... Nf6 {[%clk 0:02:58]} 9. Qh4 {[%clk 0:02:52.2]} 9... Be7 {[%clk
0:02:58.3]} 10. Qg3 {[%clk 0:02:52.2]} 10... O-O {[%clk 0:02:51.3]} 11. O-O-O
{[%clk 0:02:50.1]} 11... Ne8 {[%clk 0:02:47.8]} 12. Ne5 {[%clk 0:02:46.9]} 12...
Bf6 {[%clk 0:02:46.4]} 13. f4 {[%clk 0:02:46.5]} 13... g6 {[%clk 0:02:40]} 14.
h4 {[%clk 0:02:45.7]} 14... Ng7 {[%clk 0:02:39.5]} 15. h5 {[%clk 0:02:44.9]}
15... Nf5 {[%clk 0:02:39.5]} 16. Qg4 {[%clk 0:02:40.1]} 16... Qc7 {[%clk
0:02:29.6]} 17. Bd3 {[%clk 0:02:34.4]} 17... b5 {[%clk 0:02:25.3]} 18. hxg6
{[%clk 0:02:27.9]} 18... fxg6 {[%clk 0:02:25.3]} 19. Rh3 {[%clk 0:02:06.8]}
19... Qg7 {[%clk 0:02:00.5]} 20. Rdh1 {[%clk 0:02:03.7]} 20... h5 {[%clk
0:01:54]} 21. Qf3 {[%clk 0:01:48.3]} 21... Bb7 {[%clk 0:01:33.3]} 22. g4 {[%clk
0:01:30.4]} 22... c5 {[%clk 0:01:33.4]} 23. Be4 {[%clk 0:01:20.1]} 23... Bxe4
{[%clk 0:01:32.1]} 24. Qxe4 {[%clk 0:01:21]} 24... hxg4 {[%clk 0:01:08]} 25. Rh7
{[%clk 0:00:59.7]} 25... Qxh7 {[%clk 0:01:00.9]} 26. Rxh7 {[%clk 0:01:00.6]}
26... Kxh7 {[%clk 0:01:01]} 27. Qb7+ {[%clk 0:00:55.1]} 27... Kg8 {[%clk
0:00:44.3]} 28. Nxg6 {[%clk 0:00:48.2]} 28... Bxb2+ {[%clk 0:00:43.7]} 29. Kxb2
{[%clk 0:00:49.1]} 29... Rfe8 {[%clk 0:00:42.3]} 30. Ne5 {[%clk 0:00:47.5]}
30... Rf8 {[%clk 0:00:39.5]} 31. Nxg4 {[%clk 0:00:46.2]} 31... Rab8 {[%clk
0:00:33.9]} 32. Qxa7 {[%clk 0:00:45]} 32... c4 {[%clk 0:00:33.2]} 33. Qd7 {[%clk
0:00:43.4]} 33... Rbe8 {[%clk 0:00:29.6]} 34. Nf6+ {[%clk 0:00:39.2]} 1-0

[Event "*** SCC Grand Prix: Titled Tuesday Blitz"]
[Site "Chess.com"]
[Date "2020.08.25"]
[Round "3"]
[White "Gabrielian_Artur"]
[Black "Orest_Vovk"]
[Result "1-0"]
[WhiteElo "2713"]
[BlackElo "2377"]
[TimeControl "180+1"]
[EndTime "10:29:26 PDT"]
[Termination "Gabrielian_Artur won by resignation"]

1. e4 {[%clk 0:03:00.9]} 1... e5 {[%clk 0:02:46.5]} 2. Nc3 {[%clk 0:03:01.2]}
2... d6 {[%clk 0:02:42.7]} 3. g3 {[%clk 0:03:01.5]} 3... Nf6 {[%clk 0:02:40.6]}
4. Bg2 {[%clk 0:03:01.8]} 4... Bg4 {[%clk 0:02:40.5]} 5. Nge2 {[%clk 0:03:01.3]}
5... Nc6 {[%clk 0:02:40.5]} 6. h3 {[%clk 0:03:01.2]} 6... Be6 {[%clk 0:02:39.4]}
7. d3 {[%clk 0:03:01.2]} 7... Be7 {[%clk 0:02:38.7]} 8. Nd5 {[%clk 0:03:01.3]}
8... Bxd5 {[%clk 0:02:30.7]} 9. exd5 {[%clk 0:03:01.5]} 9... Nb4 {[%clk
0:02:30.6]} 10. c4 {[%clk 0:02:57.9]} 10... a5 {[%clk 0:02:17.7]} 11. O-O {[%clk
0:02:56.8]} 11... O-O {[%clk 0:02:16]} 12. Nc3 {[%clk 0:02:55.7]} 12... Na6
{[%clk 0:02:12]} 13. Be3 {[%clk 0:02:55.4]} 13... b6 {[%clk 0:02:11.2]} 14. b3
{[%clk 0:02:52.6]} 14... Nc5 {[%clk 0:02:09.1]} 15. Rb1 {[%clk 0:02:52.8]} 15...
Nfd7 {[%clk 0:02:04.3]} 16. a3 {[%clk 0:02:52.7]} 16... Bg5 {[%clk 0:02:01.5]}
17. b4 {[%clk 0:02:52.2]} 17... Bxe3 {[%clk 0:01:51.8]} 18. fxe3 {[%clk
0:02:53.1]} 18... Nb7 {[%clk 0:01:43.9]} 19. g4 {[%clk 0:02:53]} 19... Qg5
{[%clk 0:01:41.5]} 20. Qe2 {[%clk 0:02:51]} 20... g6 {[%clk 0:01:27.6]} 21. Ne4
{[%clk 0:02:49.2]} 21... Qe7 {[%clk 0:01:24.8]} 22. g5 {[%clk 0:02:49.3]} 22...
f5 {[%clk 0:01:20.2]} 23. gxf6 {[%clk 0:02:49.5]} 23... Nxf6 {[%clk 0:01:19.2]}
24. Ng5 {[%clk 0:02:49.8]} 24... axb4 {[%clk 0:01:13.3]} 25. axb4 {[%clk
0:02:49.5]} 25... Nh5 {[%clk 0:01:13]} 26. Qg4 {[%clk 0:02:49.1]} 26... Rxf1+
{[%clk 0:00:47.7]} 27. Rxf1 {[%clk 0:02:48.7]} 27... Rf8 {[%clk 0:00:46.1]} 28.
Qe6+ {[%clk 0:02:48.3]} 28... Qxe6 {[%clk 0:00:43.9]} 29. dxe6 {[%clk
0:02:48.7]} 29... Rxf1+ {[%clk 0:00:33.8]} 30. Kxf1 {[%clk 0:02:48.4]} 30... d5
{[%clk 0:00:33.9]} 31. Bxd5 {[%clk 0:02:44.9]} 31... Nd6 {[%clk 0:00:30.3]} 32.
e7+ {[%clk 0:02:32.5]} 32... Kg7 {[%clk 0:00:29.4]} 33. Bc6 {[%clk 0:02:26.1]}
33... Nf6 {[%clk 0:00:28.1]} 34. c5 {[%clk 0:02:24.3]} 34... bxc5 {[%clk
0:00:27.1]} 35. bxc5 {[%clk 0:02:25.2]} 35... Nde8 {[%clk 0:00:27.4]} 36. Bxe8
{[%clk 0:02:11.5]} 36... Nxe8 {[%clk 0:00:26.5]} 37. d4 {[%clk 0:02:12.1]} 37...
exd4 {[%clk 0:00:25.8]} 38. exd4 {[%clk 0:02:12.5]} 38... h6 {[%clk 0:00:19.3]}
39. Nf3 {[%clk 0:02:12.7]} 39... Kf6 {[%clk 0:00:16.4]} 40. Ne5 {[%clk
0:02:12.9]} 40... g5 {[%clk 0:00:10]} 41. Ng4+ {[%clk 0:02:11.4]} 41... Kxe7
{[%clk 0:00:09.5]} 42. Nxh6 {[%clk 0:02:11.7]} 42... Ke6 {[%clk 0:00:09.9]} 43.
Ke2 {[%clk 0:02:12.1]} 43... Nf6 {[%clk 0:00:07.2]} 44. Ng4 {[%clk 0:02:11.2]}
44... Nd5 {[%clk 0:00:06.3]} 45. Kf3 {[%clk 0:02:09.3]} 45... Kf5 {[%clk
0:00:04.4]} 46. Ne3+ {[%clk 0:02:08.7]} 46... Nxe3 {[%clk 0:00:02.1]} 47. Kxe3
{[%clk 0:02:08.9]} 47... c6 {[%clk 0:00:03]} 48. Kf3 {[%clk 0:02:08.9]} 48...
Kf6 {[%clk 0:00:02.1]} 49. Ke4 {[%clk 0:02:08.3]} 49... Ke6 {[%clk 0:00:02.4]}
50. d5+ {[%clk 0:02:08.8]} 50... cxd5+ {[%clk 0:00:01.7]} 51. Kd4 {[%clk
0:02:09.7]} 51... Kd7 {[%clk 0:00:02]} 52. Kxd5 {[%clk 0:02:10.3]} 52... Kc7
{[%clk 0:00:02.9]} 53. Ke5 {[%clk 0:02:02.5]} 53... Kc6 {[%clk 0:00:02.9]} 54.
Kd4 {[%clk 0:02:02.8]} 54... Kc7 {[%clk 0:00:02.5]} 55. Ke4 {[%clk 0:02:03.2]}
55... Kc6 {[%clk 0:00:02.6]} 56. Kf5 {[%clk 0:02:03.6]} 56... Kxc5 {[%clk
0:00:03]} 57. Kxg5 {[%clk 0:02:04.5]} 57... Kd6 {[%clk 0:00:03.9]} 58. Kf6
{[%clk 0:02:05]} 58... Kd7 {[%clk 0:00:03.2]} 59. h4 {[%clk 0:02:04.8]} 59...
Ke8 {[%clk 0:00:04.1]} 60. Kg7 {[%clk 0:02:05.2]} 1-0

[Event "*** SCC Grand Prix: Titled Tuesday Blitz"]
[Site "Chess.com"]
[Date "2020.08.25"]
[Round "3"]
[White "MattyDPerrine"]
[Black "MomchilPetkov"]
[Result "0-1"]
[WhiteElo "2360"]
[BlackElo "2558"]
[TimeControl "180+1"]
[EndTime "10:29:26 PDT"]
[Termination "MomchilPetkov won on time"]

1. e4 {[%clk 0:03:00.9]} 1... c5 {[%clk 0:02:57.4]} 2. Nf3 {[%clk 0:03:00.7]}
2... d6 {[%clk 0:02:57.9]} 3. Bb5+ {[%clk 0:03:00.2]} 3... Nd7 {[%clk
0:02:57.2]} 4. d4 {[%clk 0:02:42.3]} 4... cxd4 {[%clk 0:02:58.1]} 5. Qxd4 {[%clk
0:02:42.7]} 5... a6 {[%clk 0:02:56.8]} 6. Be2 {[%clk 0:02:37.7]} 6... Ngf6
{[%clk 0:02:53.5]} 7. Nc3 {[%clk 0:02:35.6]} 7... e5 {[%clk 0:02:47.7]} 8. Qe3
{[%clk 0:02:31]} 8... Be7 {[%clk 0:02:47.7]} 9. O-O {[%clk 0:02:30.6]} 9... O-O
{[%clk 0:02:47.9]} 10. Nd2 {[%clk 0:02:22.9]} 10... b5 {[%clk 0:02:47.6]} 11. a4
{[%clk 0:01:56.8]} 11... b4 {[%clk 0:02:46]} 12. Na2 {[%clk 0:01:57.4]} 12... d5
{[%clk 0:02:42.3]} 13. exd5 {[%clk 0:01:42.9]} 13... Nxd5 {[%clk 0:02:43.2]} 14.
Qg3 {[%clk 0:01:20]} 14... Bb7 {[%clk 0:02:34.3]} 15. Re1 {[%clk 0:01:15]} 15...
Bh4 {[%clk 0:02:31.4]} 16. Qf3 {[%clk 0:00:46]} 16... Nc5 {[%clk 0:02:23.6]} 17.
Bf1 {[%clk 0:00:20.5]} 17... Re8 {[%clk 0:01:27.7]} 18. g3 {[%clk 0:00:18.8]}
18... Bf6 {[%clk 0:01:27]} 19. Ne4 {[%clk 0:00:14.7]} 19... Nxe4 {[%clk
0:01:27.1]} 20. Qxe4 {[%clk 0:00:14.3]} 20... Qb6 {[%clk 0:01:20.7]} 21. Bg2
{[%clk 0:00:14.2]} 21... Rab8 {[%clk 0:01:16.4]} 22. Be3 {[%clk 0:00:14.6]}
22... Nxe3 {[%clk 0:01:15.6]} 23. Qxe3 {[%clk 0:00:15.1]} 23... Bxg2 {[%clk
0:01:12.8]} 24. Qxb6 {[%clk 0:00:12.4]} 24... Rxb6 {[%clk 0:01:13.7]} 25. Kxg2
{[%clk 0:00:13.1]} 25... e4 {[%clk 0:01:14.6]} 26. Rab1 {[%clk 0:00:13]} 26...
a5 {[%clk 0:01:12.8]} 27. Nc1 {[%clk 0:00:12.8]} 27... Rc6 {[%clk 0:01:12.6]}
28. Re2 {[%clk 0:00:13.1]} 28... Rec8 {[%clk 0:01:11.2]} 29. Rxe4 {[%clk
0:00:12.3]} 29... Rxc2 {[%clk 0:01:11.4]} 30. Nd3 {[%clk 0:00:13]} 30... Rd2
{[%clk 0:01:10.3]} 31. Nf4 {[%clk 0:00:10.9]} 31... Rxb2 {[%clk 0:01:07.1]} 32.
Rbe1 {[%clk 0:00:06.2]} 32... g6 {[%clk 0:01:07.2]} 33. Nd5 {[%clk 0:00:06.6]}
33... Kg7 {[%clk 0:01:07.3]} 34. Rf4 {[%clk 0:00:05.9]} 34... Rc6 {[%clk
0:00:59.2]} 0-1

[Event "*** SCC Grand Prix: Titled Tuesday Blitz"]
[Site "Chess.com"]
[Date "2020.08.25"]
[Round "3"]
[White "IngOscarArdila"]
[Black "Dinamo3"]
[Result "0-1"]
[WhiteElo "2198"]
[BlackElo "2476"]
[TimeControl "180+1"]
[EndTime "10:29:26 PDT"]
[Termination "Dinamo3 won by resignation"]

1. d4 {[%clk 0:03:00.9]} 1... Nf6 {[%clk 0:02:59.1]} 2. c4 {[%clk 0:03:01.1]}
2... g6 {[%clk 0:02:59.2]} 3. Nc3 {[%clk 0:03:01.2]} 3... Bg7 {[%clk 0:02:59.4]}
4. e4 {[%clk 0:03:01.3]} 4... O-O {[%clk 0:02:59.9]} 5. Nf3 {[%clk 0:03:01.2]}
5... d6 {[%clk 0:03:00.4]} 6. Be2 {[%clk 0:03:01.2]} 6... Na6 {[%clk 0:03:00.9]}
7. O-O {[%clk 0:03:00.4]} 7... e5 {[%clk 0:03:00.3]} 8. d5 {[%clk 0:02:59.6]}
8... Nc5 {[%clk 0:03:00.1]} 9. Qc2 {[%clk 0:02:59.6]} 9... a5 {[%clk 0:03:00.4]}
10. b3 {[%clk 0:02:57.3]} 10... Nh5 {[%clk 0:02:57.1]} 11. Bg5 {[%clk
0:02:56.4]} 11... f6 {[%clk 0:02:57]} 12. Be3 {[%clk 0:02:55.4]} 12... f5 {[%clk
0:02:50.7]} 13. Bg5 {[%clk 0:02:53.7]} 13... Qe8 {[%clk 0:02:45.1]} 14. Nd2
{[%clk 0:02:33.4]} 14... Nf4 {[%clk 0:02:40.9]} 15. Bf3 {[%clk 0:02:20.4]} 15...
h6 {[%clk 0:02:39.6]} 16. Bxf4 {[%clk 0:02:19]} 16... exf4 {[%clk 0:02:39.5]}
17. Rfe1 {[%clk 0:02:14.2]} 17... Qf7 {[%clk 0:02:39]} 18. a3 {[%clk 0:01:59.3]}
18... g5 {[%clk 0:02:10.9]} 19. b4 {[%clk 0:01:40.9]} 19... axb4 {[%clk
0:02:10.6]} 20. axb4 {[%clk 0:01:40.5]} 20... Rxa1 {[%clk 0:02:11.1]} 21. Rxa1
{[%clk 0:01:40.6]} 21... Na6 {[%clk 0:02:11.6]} 22. exf5 {[%clk 0:01:13.2]}
22... Bxf5 {[%clk 0:02:10.9]} 23. Qb3 {[%clk 0:01:09.4]} 23... g4 {[%clk
0:02:08.8]} 24. Be4 {[%clk 0:01:08.6]} 24... Qf6 {[%clk 0:02:01.5]} 25. Rc1
{[%clk 0:01:02.4]} 25... Bd7 {[%clk 0:01:53.4]} 26. c5 {[%clk 0:00:57.1]} 26...
g3 {[%clk 0:01:24.5]} 27. Nb5 {[%clk 0:00:29.1]} 27... Bxb5 {[%clk 0:01:18.5]}
28. Nf3 {[%clk 0:00:22.9]} 28... gxf2+ {[%clk 0:01:14.8]} 29. Kxf2 {[%clk
0:00:22.7]} 29... Qb2+ {[%clk 0:01:08.2]} 30. Qxb2 {[%clk 0:00:22.8]} 30... Bxb2
{[%clk 0:01:09.1]} 31. Rb1 {[%clk 0:00:22.6]} 31... Bf6 {[%clk 0:01:09.2]} 32.
c6 {[%clk 0:00:20]} 32... bxc6 {[%clk 0:01:07.1]} 33. dxc6 {[%clk 0:00:20.9]}
33... Nb8 {[%clk 0:01:04.8]} 34. Rc1 {[%clk 0:00:20.5]} 34... Re8 {[%clk
0:01:03]} 35. Bd5+ {[%clk 0:00:20.7]} 35... Kg7 {[%clk 0:01:03]} 36. g3 {[%clk
0:00:20.8]} 36... fxg3+ {[%clk 0:01:02.3]} 37. hxg3 {[%clk 0:00:21.7]} 37... Na6
{[%clk 0:00:53.9]} 38. g4 {[%clk 0:00:21]} 38... Nxb4 {[%clk 0:00:53.4]} 39. Bb3
{[%clk 0:00:20.4]} 39... Nd3+ {[%clk 0:00:53.3]} 0-1

[Event "*** SCC Grand Prix: Titled Tuesday Blitz"]
[Site "Chess.com"]
[Date "2020.08.25"]
[Round "3"]
[White "okriak"]
[Black "Khazieva_Elza"]
[Result "1-0"]
[WhiteElo "2716"]
[BlackElo "2416"]
[TimeControl "180+1"]
[EndTime "10:29:29 PDT"]
[Termination "okriak won on time"]

1. e4 {[%clk 0:03:00.9]} 1... c5 {[%clk 0:03:00.1]} 2. Nf3 {[%clk 0:03:00.7]}
2... d6 {[%clk 0:03:00.4]} 3. d4 {[%clk 0:03:01.1]} 3... cxd4 {[%clk 0:03:01.3]}
4. Nxd4 {[%clk 0:03:01.7]} 4... Nf6 {[%clk 0:03:01.9]} 5. f3 {[%clk 0:03:02.2]}
5... Nc6 {[%clk 0:02:50.2]} 6. c4 {[%clk 0:03:00.1]} 6... e6 {[%clk 0:02:48.7]}
7. Nc3 {[%clk 0:02:59.7]} 7... Be7 {[%clk 0:02:49]} 8. Be2 {[%clk 0:02:58.4]}
8... O-O {[%clk 0:02:49.4]} 9. O-O {[%clk 0:02:56.3]} 9... Bd7 {[%clk
0:02:23.1]} 10. Be3 {[%clk 0:02:55.8]} 10... a6 {[%clk 0:02:20.3]} 11. Qd2
{[%clk 0:02:55.1]} 11... Rc8 {[%clk 0:02:09.1]} 12. Rac1 {[%clk 0:02:54.5]}
12... Ne5 {[%clk 0:02:07.3]} 13. b3 {[%clk 0:02:54.4]} 13... Qc7 {[%clk
0:02:01.4]} 14. Rfd1 {[%clk 0:02:53.5]} 14... Qb8 {[%clk 0:01:58]} 15. Bf1
{[%clk 0:02:47]} 15... Rfd8 {[%clk 0:01:57.2]} 16. Kh1 {[%clk 0:02:42.5]} 16...
Be8 {[%clk 0:01:49]} 17. Qf2 {[%clk 0:02:42]} 17... Bf8 {[%clk 0:01:25.9]} 18.
Qg1 {[%clk 0:02:39.7]} 18... d5 {[%clk 0:01:22.6]} 19. f4 {[%clk 0:02:14.9]}
19... Neg4 {[%clk 0:01:15.5]} 20. e5 {[%clk 0:02:14.8]} 20... Nxe3 {[%clk
0:01:04.8]} 21. Qxe3 {[%clk 0:02:13.8]} 21... Ng4 {[%clk 0:00:40.9]} 22. Qf3
{[%clk 0:02:10.7]} 22... Nxe5 {[%clk 0:00:30.7]} 23. fxe5 {[%clk 0:02:08.9]}
23... Qxe5 {[%clk 0:00:30.5]} 24. cxd5 {[%clk 0:02:01.9]} 24... exd5 {[%clk
0:00:30.3]} 25. Nce2 {[%clk 0:01:46.4]} 25... Rxc1 {[%clk 0:00:26.9]} 26. Rxc1
{[%clk 0:01:46]} 26... Bd6 {[%clk 0:00:23.6]} 27. g3 {[%clk 0:01:42.8]} 27...
Bd7 {[%clk 0:00:15.1]} 28. Bg2 {[%clk 0:01:38.7]} 28... Be6 {[%clk 0:00:08.3]}
29. Nxe6 {[%clk 0:01:32.3]} 29... fxe6 {[%clk 0:00:08.5]} 30. Nf4 {[%clk
0:01:27.8]} 30... Rf8 {[%clk 0:00:06.8]} 31. Qg4 {[%clk 0:01:20.4]} 31... Qe3
{[%clk 0:00:03.8]} 32. Qxe6+ {[%clk 0:01:17.7]} 32... Qxe6 {[%clk 0:00:03.7]}
33. Nxe6 {[%clk 0:01:18.3]} 33... Rf2 {[%clk 0:00:02.1]} 34. Bxd5 {[%clk
0:01:15.7]} 34... Ba3 {[%clk 0:00:02.1]} 35. Rc7 {[%clk 0:01:04.2]} 1-0

[Event "*** SCC Grand Prix: Titled Tuesday Blitz"]
[Site "Chess.com"]
[Date "2020.08.25"]
[Round "3"]
[White "szachuspl"]
[Black "KarpovVadim"]
[Result "1-0"]
[WhiteElo "2508"]
[BlackElo "2310"]
[TimeControl "180+1"]
[EndTime "10:29:30 PDT"]
[Termination "szachuspl won by resignation"]

1. d4 {[%clk 0:03:00.9]} 1... Nf6 {[%clk 0:02:57.7]} 2. c4 {[%clk 0:03:00.8]}
2... e6 {[%clk 0:02:57.9]} 3. Nf3 {[%clk 0:03:00.8]} 3... Bb4+ {[%clk 0:02:56]}
4. Nbd2 {[%clk 0:03:00.5]} 4... b6 {[%clk 0:02:55.2]} 5. g3 {[%clk 0:02:58.3]}
5... Bb7 {[%clk 0:02:55.3]} 6. Bg2 {[%clk 0:02:58.7]} 6... O-O {[%clk
0:02:55.4]} 7. O-O {[%clk 0:02:58.7]} 7... d5 {[%clk 0:02:54.6]} 8. cxd5 {[%clk
0:02:53.9]} 8... exd5 {[%clk 0:02:45.2]} 9. a3 {[%clk 0:02:52.1]} 9... Be7
{[%clk 0:02:43.6]} 10. b4 {[%clk 0:02:50.3]} 10... c5 {[%clk 0:02:42]} 11. dxc5
{[%clk 0:02:49]} 11... bxc5 {[%clk 0:02:37.2]} 12. bxc5 {[%clk 0:02:49.3]} 12...
Bxc5 {[%clk 0:02:27.2]} 13. Nb3 {[%clk 0:02:49.6]} 13... Bb6 {[%clk 0:02:26.2]}
14. a4 {[%clk 0:02:48.5]} 14... a5 {[%clk 0:02:22.9]} 15. Ba3 {[%clk 0:02:40.6]}
15... Re8 {[%clk 0:02:19.1]} 16. Nc5 {[%clk 0:02:40.7]} 16... Bc6 {[%clk
0:02:13.5]} 17. Nd4 {[%clk 0:02:36.4]} 17... Ne4 {[%clk 0:01:58.1]} 18. Nxc6
{[%clk 0:02:10]} 18... Nxc6 {[%clk 0:01:56.1]} 19. Nxe4 {[%clk 0:02:04.6]} 19...
dxe4 {[%clk 0:01:55.1]} 20. Qb3 {[%clk 0:01:58.1]} 20... Nd4 {[%clk 0:01:47.1]}
21. Qa2 {[%clk 0:01:53.1]} 21... Rc8 {[%clk 0:01:19.3]} 22. Rac1 {[%clk
0:01:51.3]} 22... e3 {[%clk 0:01:11.1]} 23. fxe3 {[%clk 0:01:44.9]} 23... Ne6
{[%clk 0:00:50.3]} 24. Rcd1 {[%clk 0:01:33.5]} 24... Bxe3+ {[%clk 0:00:41.8]}
25. Kh1 {[%clk 0:01:33.4]} 25... Qg5 {[%clk 0:00:38.5]} 26. Rd5 {[%clk
0:01:30.3]} 26... Qg6 {[%clk 0:00:31.5]} 27. Rdf5 {[%clk 0:01:29.5]} 27... Nd8
{[%clk 0:00:18.5]} 28. Rxa5 {[%clk 0:01:25.6]} 28... Rc2 {[%clk 0:00:13.8]} 29.
Qd5 {[%clk 0:01:18.1]} 29... Rxe2 {[%clk 0:00:11.7]} 30. Ra8 {[%clk 0:01:17.8]}
30... Bb6 {[%clk 0:00:08.5]} 31. a5 {[%clk 0:01:12.7]} 31... Bc7 {[%clk
0:00:07.2]} 32. a6 {[%clk 0:01:03.7]} 32... Bxg3 {[%clk 0:00:04.5]} 33. Rxd8
{[%clk 0:01:00]} 33... Qh6 {[%clk 0:00:03.5]} 34. Rxe8+ {[%clk 0:00:59.7]} 34...
Rxe8 {[%clk 0:00:01.7]} 35. Qxf7+ {[%clk 0:00:59.7]} 1-0

[Event "*** SCC Grand Prix: Titled Tuesday Blitz"]
[Site "Chess.com"]
[Date "2020.08.25"]
[Round "3"]
[White "Klavdia_Nik"]
[Black "Playgood28"]
[Result "0-1"]
[WhiteElo "2056"]
[BlackElo "2330"]
[TimeControl "180+1"]
[EndTime "10:29:30 PDT"]
[Termination "Playgood28 won on time"]

1. Nf3 {[%clk 0:02:06.8]} 1... f5 {[%clk 0:02:56.8]} 2. c4 {[%clk 0:02:04.5]}
2... d6 {[%clk 0:02:55.7]} 3. d4 {[%clk 0:02:02.3]} 3... g6 {[%clk 0:02:54.8]}
4. Nc3 {[%clk 0:01:57.9]} 4... Nf6 {[%clk 0:02:54.3]} 5. g3 {[%clk 0:01:56]}
5... Bg7 {[%clk 0:02:54.1]} 6. Bg2 {[%clk 0:01:48.5]} 6... O-O {[%clk
0:02:53.6]} 7. d5 {[%clk 0:01:28.3]} 7... e5 {[%clk 0:02:47.6]} 8. dxe6 {[%clk
0:01:26.2]} 8... c6 {[%clk 0:02:47.3]} 9. Nd4 {[%clk 0:01:17.7]} 9... Qe7 {[%clk
0:02:44.7]} 10. O-O {[%clk 0:01:13.2]} 10... Bxe6 {[%clk 0:02:43.6]} 11. Nxe6
{[%clk 0:01:12.7]} 11... Qxe6 {[%clk 0:02:43.3]} 12. Qb3 {[%clk 0:01:00.5]}
12... Qf7 {[%clk 0:02:39.9]} 13. Bf4 {[%clk 0:00:53.4]} 13... Rd8 {[%clk
0:02:37.4]} 14. Rfd1 {[%clk 0:00:43.2]} 14... Ne8 {[%clk 0:02:36.7]} 15. e4
{[%clk 0:00:24.7]} 15... Na6 {[%clk 0:02:26.6]} 16. exf5 {[%clk 0:00:18.4]}
16... gxf5 {[%clk 0:02:26.1]} 17. Be3 {[%clk 0:00:12.6]} 17... Nc5 {[%clk
0:02:02.3]} 18. Qc2 {[%clk 0:00:12.6]} 18... Ne6 {[%clk 0:01:37]} 19. b3 {[%clk
0:00:11]} 19... f4 {[%clk 0:01:33.9]} 20. Bd2 {[%clk 0:00:08.8]} 20... Nf6
{[%clk 0:01:15]} 21. Qd3 {[%clk 0:00:06.7]} 21... Ng4 {[%clk 0:01:04.4]} 22. Qf3
{[%clk 0:00:06.1]} 22... Ne5 {[%clk 0:00:59.7]} 23. Qe4 {[%clk 0:00:04.4]} 23...
Rf8 {[%clk 0:00:50.7]} 24. Rac1 {[%clk 0:00:01.7]} 24... Ng4 {[%clk 0:00:36.1]}
0-1